bitfinex/quotes_BTCUSD_20260117
["timestamp","ask_amount","ask_price","bid_price","bid_amount"]
[1768660229227,0.05240194,95417.0,95411.0,0.01048097]
[1768660229428,0.01048075,95413.0,95406.0,0.01048152]
[1768660229632,0.3282578,95422.0,95412.0,0.01048086]
[1768660229633,0.01048042,95416.0,95412.0,0.01048086]
[1768660229851,0.3282578,95415.0,95411.0,0.01048097]
[1768660230057,0.3282578,95415.0,95412.0,0.01048086]
[1768660230285,0.3282578,95415.0,95409.0,0.01048119]
[1768660230484,0.0104802,95418.0,95409.0,0.01048119]
[1768660230485,0.3282578,95418.0,95415.0,0.01048053]
[1768660231008,0.3282578,95418.0,95416.0,0.05232367]
[1768660231214,0.01047954,95424.0,95420.0,0.05239988]
[1768660231346,0.127,95425.0,95422.0,0.06287857]
[1768660231556,0.127,95425.0,95422.0,0.01047976]
[1768660231777,0.3282578,95424.0,95422.0,0.01047976]
[1768660232008,0.3508729,95424.0,95421.0,0.01047987]
[1768660232145,0.3508729,95424.0,95421.0,0.0628787]
[1768660232540,0.3508729,95424.0,95422.0,0.05239873]
[1768660232772,0.0226151,95424.0,95421.0,0.01047987]
[1768660232980,0.127,95425.0,95422.0,0.06287857]
[1768660233191,0.127,95425.0,95424.0,0.05239771]
[1768660234547,0.127,95425.0,95424.0,0.05231969]
[1768660235190,0.127,95425.0,95422.0,0.06287857]
[1768660235191,0.127,95425.0,95423.0,0.05239813]
[1768660236018,0.01047932,95426.0,95422.0,0.01047976]
[1768660236234,0.13747932,95426.0,95422.0,0.06287848]
[1768660236470,0.46320384,95426.0,95423.0,0.01047965]
[1768660236632,0.0226151,95425.0,95423.0,0.01047965]
[1768660237743,0.0226151,95425.0,95422.0,0.01047976]
[1768660237931,0.0226151,95425.0,95424.0,0.05239771]
[1768660238116,0.0226151,95425.0,95422.0,0.01047976]
[1768660238320,0.03309453,95425.0,95421.0,0.01047987]
[1768660238579,0.08549185,95425.0,95421.0,0.01047987]
[1768660238778,0.41121637,95425.0,95421.0,0.01047987]
[1768660238924,0.01047954,95424.0,95421.0,0.01047987]
[1768660239135,0.03309464,95424.0,95421.0,0.01047987]
[1768660239588,0.01047954,95424.0,95421.0,0.01047987]
[1768660240311,0.03309464,95424.0,95421.0,0.01047987]
[1768660241913,0.0226151,95424.0,95421.0,0.06287891]
[1768660242126,0.0226151,95424.0,95422.0,0.05239876]
[1768660242344,0.0226151,95425.0,95422.0,0.06287852]
[1768660242527,0.0226151,95424.0,95422.0,0.06287852]
[1768660242678,0.0226151,95425.0,95422.0,0.06287852]
[1768660242864,0.0226151,95424.0,95422.0,0.06287852]
[1768660243070,0.0226151,95425.0,95422.0,0.06287852]
[1768660243273,0.0226151,95424.0,95422.0,0.06287852]
[1768660243529,0.0226151,95425.0,95422.0,0.06287852]
[1768660243732,0.05239466,95430.0,95422.0,0.06287852]
[1768660243733,0.0001958,95433.0,95430.0,0.01047888]
[1768660243950,0.0001958,95433.0,95432.0,0.05239332]
[1768660244111,1e-08,95433.0,95432.0,0.05239332]
[1768660244781,1e-08,95433.0,95430.0,0.01047888]
[1768660244984,0.0004728,95433.0,95430.0,0.06287293]
[1768660245511,0.0004728,95433.0,95432.0,0.05239332]
[1768660245862,0.0004728,95433.0,95431.0,0.05239383]
[1768660246600,0.0004728,95433.0,95432.0,0.05239332]
[1768660246804,0.0004728,95433.0,95431.0,0.05239378]
[1768660247004,0.0004728,95433.0,95432.0,0.05239332]
[1768660248258,0.0004728,95433.0,95431.0,0.05239375]
[1768660249590,0.0004728,95433.0,95432.0,0.05239332]
[1768660249793,1e-08,95433.0,95432.0,0.05239332]
[1768660251932,1e-08,95433.0,95430.0,0.01047888]
[1768660252135,1e-08,95433.0,95431.0,0.05239387]
[1768660252318,1e-08,95433.0,95430.0,0.06287325]
[1768660253324,1e-08,95433.0,95430.0,0.01047888]
[1768660253590,1e-08,95433.0,95431.0,0.05239387]
[1768660255463,1e-08,95433.0,95432.0,0.05239332]
[1768660255879,1e-08,95433.0,95431.0,0.05239374]
[1768660256508,1e-08,95433.0,95430.0,0.0628729]
[1768660256708,1e-08,95433.0,95430.0,0.01047888]
[1768660256899,1e-08,95433.0,95430.0,0.06287319]
[1768660257380,1e-08,95433.0,95431.0,0.05239365]
[1768660257578,1e-08,95433.0,95431.0,0.05239387]
[1768660258013,1e-08,95433.0,95432.0,0.05239332]
[1768660259712,1e-08,95433.0,95431.0,0.05239387]
[1768660260892,1e-08,95433.0,95430.0,0.06287328]
[1768660261331,1e-08,95433.0,95430.0,0.01047888]
[1768660261545,1e-08,95433.0,95431.0,0.05239368]
[1768660262285,1e-08,95433.0,95430.0,0.06287222]
[1768660262525,0.127,95438.0,95437.0,0.05239058]
[1768660262725,0.0002,95446.0,95442.0,0.05238737]
[1768660262941,0.0002,95446.0,95444.0,0.05238621]
[1768660263185,0.0002,95446.0,95444.0,0.05238624]
[1768660263414,0.32867442,95446.0,95443.0,0.01047745]
[1768660264810,0.33915154,95446.0,95443.0,0.01047745]
[1768660265012,0.01047723,95445.0,95440.0,0.06286662]
[1768660265235,0.33895176,95444.0,95439.0,0.01047789]
[1768660265437,0.01047756,95442.0,95438.0,0.010478]
[1768660265669,0.01047756,95442.0,95439.0,0.01047789]
[1768660266027,0.33895176,95444.0,95439.0,0.01047789]
[1768660266249,0.0523876,95443.0,95439.0,0.01047789]
[1768660266453,0.01047756,95442.0,95439.0,0.01039988]
[1768660267310,0.33895209,95441.0,95437.0,0.01047811]
[1768660267526,0.010478,95438.0,95433.0,0.01047855]
[1768660267726,0.01043276,95438.0,95435.0,0.01047833]
[1768660267959,0.01047789,95439.0,95436.0,0.01047822]
[1768660268519,0.01047756,95442.0,95438.0,0.06286777]
[1768660268721,0.01047756,95442.0,95438.0,0.010478]
[1768660269100,0.01047723,95445.0,95439.0,0.01047789]
[1768660269319,0.01047745,95443.0,95440.0,0.01047778]
[1768660270141,0.0002,95446.0,95442.0,0.01047756]
[1768660270413,0.0002,95446.0,95443.0,0.06286464]
[1768660270858,0.33915154,95446.0,95442.0,0.01047756]
[1768660271059,0.01067712,95446.0,95442.0,0.01047756]
[1768660271270,0.01047723,95445.0,95442.0,0.01047756]
[1768660271927,0.01047734,95444.0,95440.0,0.01047778]
[1768660272146,0.0628645,95444.0,95440.0,0.01047778]
[1768660272777,0.01047734,95444.0,95440.0,0.06286659]
[1768660273428,0.01047734,95444.0,95440.0,0.01047778]
[1768660274760,0.01047745,95443.0,95440.0,0.01047778]
[1768660274975,0.06286478,95443.0,95440.0,0.01047778]
[1768660275355,0.01047756,95442.0,95439.0,0.01047789]
[1768660277063,0.06286544,95442.0,95439.0,0.01047789]
[1768660277257,0.01047745,95443.0,95439.0,0.01047789]
[1768660277581,0.06286441,95445.0,95439.0,0.01047789]
[1768660277582,0.01047723,95445.0,95440.0,0.01047778]
[1768660277783,0.01047723,95445.0,95441.0,0.01047767]
[1768660277952,0.01047723,95445.0,95441.0,0.06286564]
[1768660278650,0.01047723,95445.0,95442.0,0.06286534]
[1768660279335,0.01047723,95445.0,95442.0,0.01047756]
[1768660279493,0.01067712,95446.0,95442.0,0.06286522]
[1768660279700,0.33915154,95446.0,95442.0,0.06286522]
[1768660279896,0.33915154,95446.0,95442.0,0.01047756]
[1768660281302,0.01047723,95445.0,95442.0,0.01047756]
[1768660281832,0.01047734,95444.0,95440.0,0.01047778]
[1768660282811,0.0523873,95443.0,95440.0,0.01047778]
[1768660283355,0.06286475,95443.0,95440.0,0.01047778]
[1768660284306,0.01047756,95442.0,95439.0,0.01047789]
[1768660284854,0.01047745,95443.0,95438.0,0.010478]
[1768660285076,0.01047745,95443.0,95438.0,0.06286793]
[1768660285461,0.01047734,95444.0,95440.0,0.01047778]
[1768660286414,0.06286412,95444.0,95440.0,0.01047778]
[1768660286745,0.01047745,95443.0,95440.0,0.01047778]
[1768660289374,0.01047756,95442.0,95438.0,0.010478]
[1768660289597,0.01047756,95442.0,95439.0,0.06286737]
[1768660289812,0.01047745,95443.0,95439.0,0.01047789]
[1768660290019,0.06286488,95443.0,95439.0,0.01047789]
[1768660290218,0.06286539,95442.0,95438.0,0.010478]
[1768660290472,0.01047756,95442.0,95438.0,0.06153809]
[1768660291877,0.01047756,95442.0,95438.0,0.06153808]
[1768660292078,0.01047756,95442.0,95438.0,0.00914812]
[1768660293230,0.01047745,95443.0,95439.0,0.01047789]
[1768660294067,0.06286476,95443.0,95439.0,0.01047789]
[1768660294440,0.06286476,95443.0,95438.0,0.00914812]
[1768660294441,0.33485979,95442.0,95438.0,0.00914812]
[1768660294668,0.33485979,95442.0,95438.0,0.06153797]
[1768660294787,0.01047756,95442.0,95438.0,0.06153797]
[1768660294989,0.01047734,95444.0,95440.0,0.01047778]
[1768660295198,0.33485957,95444.0,95440.0,0.01047778]
[1768660295599,0.33485957,95444.0,95441.0,0.01047767]
[1768660297767,0.33485957,95444.0,95440.0,0.01047778]
[1768660297993,0.01047745,95443.0,95440.0,0.01047778]
[1768660299639,0.0002,95446.0,95443.0,0.06286436]
[1768660300089,0.0002,95446.0,95444.0,0.05238666]
[1768660300716,0.0002,95446.0,95443.0,0.01047745]
[1768660301702,0.0002,95446.0,95443.0,0.06286469]
[1768660302106,0.01047723,95445.0,95441.0,0.01047767]
[1768660302305,0.06286384,95445.0,95441.0,0.01047767]
[1768660302925,0.06286415,95444.0,95440.0,0.01047778]
[1768660303120,0.01047745,95443.0,95440.0,0.01047778]
[1768660303720,0.01047756,95442.0,95438.0,0.00914812]
[1768660303917,0.05238999,95439.0,95435.0,0.01047833]
[1768660304204,0.0628668,95440.0,95434.0,0.01047844]
[1768660304397,0.01047789,95439.0,95435.0,0.01047833]
[1768660304658,0.01047822,95436.0,95433.0,0.01047855]
[1768660304889,0.05239243,95434.0,95429.0,0.01047899]
[1768660305049,0.01047822,95436.0,95430.0,0.01047888]
[1768660305229,0.01047855,95433.0,95430.0,0.01047888]
[1768660305432,0.01047844,95434.0,95430.0,0.01047888]
[1768660306041,0.01047822,95436.0,95432.0,0.01047866]
[1768660306734,0.01047822,95436.0,95432.0,0.06287186]
[1768660306964,0.01047822,95436.0,95432.0,0.01047866]
[1768660307159,0.01047811,95437.0,95433.0,0.01047855]
[1768660307590,0.010478,95438.0,95434.0,0.01047844]
[1768660308879,0.01047789,95439.0,95435.0,0.01047833]
[1768660309086,0.010478,95438.0,95435.0,0.01047833]
[1768660311457,0.01047789,95439.0,95435.0,0.01047833]
[1768660311898,0.01047789,95439.0,95436.0,0.01047822]
[1768660313476,0.01047789,95439.0,95436.0,0.06286934]
[1768660313898,0.01047778,95440.0,95436.0,0.06286934]
[1768660314465,0.01047778,95440.0,95436.0,0.06279129]
[1768660315010,0.01047778,95440.0,95437.0,0.01047811]
[1768660315159,0.01047778,95440.0,95436.0,0.01040017]
[1768660317338,0.31289953,95445.0,95441.0,0.01047767]
[1768660317537,0.32337676,95445.0,95442.0,0.01047756]
[1768660318375,0.03329141,95446.0,95442.0,0.01047756]
[1768660318601,0.06306328,95446.0,95442.0,0.01047756]
[1768660318988,0.0002,95446.0,95443.0,0.01047745]
[1768660319185,0.0002,95446.0,95443.0,0.06286459]
[1768660319594,0.0002,95446.0,95443.0,0.06286473]
[1768660319788,0.0002,95446.0,95442.0,0.01047756]
[1768660319987,0.01067712,95446.0,95443.0,0.01047745]
[1768660320410,0.0002,95446.0,95443.0,0.01047745]
[1768660320660,0.0002,95446.0,95443.0,0.0628647]
[1768660320868,0.0002,95446.0,95442.0,0.01047756]
[1768660321000,0.05258611,95446.0,95442.0,0.01047756]
[1768660321202,0.0002,95446.0,95442.0,0.01047756]
[1768660321401,0.0002,95446.0,95443.0,0.06286461]
[1768660321609,1e-08,95446.0,95445.0,0.05238619]
[1768660323837,1e-08,95446.0,95445.0,0.04685923]
[1768660324809,1e-08,95446.0,95445.0,0.05238619]
[1768660326188,0.0001595,95452.0,95449.0,0.01047679]
[1768660326418,0.00011425,95452.0,95448.0,0.0104769]
[1768660326615,0.31296853,95452.0,95448.0,0.0104769]
[1768660326820,0.31296853,95452.0,95449.0,0.01047679]
[1768660327226,0.32344499,95452.0,95448.0,0.0104769]
[1768660327429,0.31296853,95452.0,95449.0,0.01047679]
[1768660328908,0.31296853,95452.0,95449.0,0.06286075]
[1768660329191,0.31296853,95452.0,95449.0,0.06286066]
[1768660329381,0.32344499,95452.0,95449.0,0.01047679]
[1768660330127,0.31296853,95452.0,95449.0,0.01047679]
[1768660331021,0.32344499,95452.0,95449.0,0.01047679]
[1768660331397,0.32344499,95452.0,95448.0,0.0104769]
[1768660331577,0.31289953,95450.0,95447.0,0.01047701]
[1768660331770,0.32337621,95450.0,95445.0,0.01047723]
[1768660332645,0.37576019,95450.0,95445.0,0.01047723]
[1768660333198,0.0104769,95448.0,95444.0,0.01047734]
[1768660333367,0.01047701,95447.0,95444.0,0.01047734]
[1768660335737,0.0104769,95448.0,95444.0,0.01047734]
[1768660335964,0.01047701,95447.0,95443.0,0.01047745]
[1768660337365,0.0104769,95448.0,95444.0,0.06286394]
[1768660337576,0.0104769,95448.0,95444.0,0.01047734]
[1768660337758,0.01047701,95447.0,95444.0,0.01047734]
[1768660338322,0.0104769,95448.0,95444.0,0.06286404]
[1768660338682,0.0104769,95448.0,95444.0,0.01047734]
[1768660338683,0.01047701,95447.0,95444.0,0.01047734]
[1768660339893,0.06286216,95447.0,95443.0,0.01047745]
[1768660340133,0.31289953,95441.0,95426.0,0.2095852]
[1768660340357,0.01047778,95440.0,95436.0,0.01047822]
[1768660340519,0.06286605,95441.0,95440.0,0.01048222]
[1768660340718,0.01047767,95441.0,95440.0,0.01048222]
[1768660341087,0.010478,95438.0,95434.0,0.01047844]
[1768660341314,0.010478,95438.0,95435.0,0.01047833]
[1768660342288,0.01047778,95440.0,95437.0,0.01047811]
[1768660342462,0.0628669,95440.0,95436.0,0.01047822]
[1768660342695,0.01047778,95440.0,95436.0,0.01047822]
[1768660343563,0.06286688,95440.0,95436.0,0.01047822]
[1768660343989,0.01047778,95440.0,95436.0,0.01047822]
[1768660345279,0.01047789,95439.0,95435.0,0.06287]
[1768660345573,0.01047789,95439.0,95436.0,0.01047822]
[1768660346408,0.01048221,95438.0,95436.0,0.01047822]
[1768660346641,0.01048221,95438.0,95437.0,0.05239058]
[1768660346955,0.01047723,95445.0,95440.0,0.01047778]
[1768660347398,0.06286407,95444.0,95439.0,0.01047789]
[1768660347600,0.01047734,95444.0,95441.0,0.06286603]
[1768660347806,0.01047734,95444.0,95440.0,0.01047778]
[1768660348569,0.01047734,95444.0,95440.0,0.06286656]
[1768660348827,0.01047734,95444.0,95441.0,0.01047767]
[1768660348969,0.32337654,95447.0,95442.0,0.01047756]
[1768660348970,0.01047701,95447.0,95442.0,0.01047756]
[1768660349166,0.01047701,95447.0,95443.0,0.05238684]
[1768660349600,0.0104769,95448.0,95444.0,0.01047734]
[1768660349996,0.06286192,95448.0,95444.0,0.01047734]
[1768660351955,0.0104769,95448.0,95444.0,0.01047734]
[1768660352541,0.06286176,95448.0,95444.0,0.01047734]
[1768660352763,0.01047701,95447.0,95444.0,0.01047734]
[1768660353452,0.01047712,95446.0,95443.0,0.01047745]
[1768660356401,0.0104769,95448.0,95444.0,0.01047734]
[1768660356616,0.05238571,95446.0,95442.0,0.01047756]
[1768660356809,0.0628641,95444.0,95441.0,0.01047767]
[1768660356952,0.01047734,95444.0,95441.0,0.01047767]
[1768660358994,0.01047723,95445.0,95441.0,0.01047767]
[1768660359207,0.01047723,95445.0,95441.0,0.06286562]
[1768660359526,0.01047712,95446.0,95442.0,0.01047756]
[1768660359873,0.01047712,95446.0,95442.0,0.06286489]
[1768660360293,0.01047712,95446.0,95443.0,0.06286467]
[1768660360498,0.01047712,95446.0,95443.0,0.01047745]
[1768660360731,0.01047712,95446.0,95442.0,0.01047756]
[1768660361025,0.01047701,95447.0,95443.0,0.01047745]
[1768660361229,0.0104769,95448.0,95444.0,0.01047734]
[1768660361376,0.01047701,95447.0,95444.0,0.01047734]
[1768660361807,0.0104769,95448.0,95444.0,0.01047734]
[1768660362670,0.01047701,95447.0,95444.0,0.01047734]
[1768660363027,0.01047701,95447.0,95442.0,0.01047756]
[1768660363028,0.01047712,95446.0,95442.0,0.01047756]
[1768660363416,0.01047712,95446.0,95443.0,0.01047745]
[1768660365167,0.0628603,95450.0,95445.0,0.01047723]
[1768660365168,0.01047668,95450.0,95445.0,0.01047723]
[1768660365409,0.01047646,95452.0,95448.0,0.0104769]
[1768660365862,0.31814226,95452.0,95449.0,0.01047679]
[1768660366090,0.37052502,95452.0,95448.0,0.0104769]
[1768660366289,0.01047657,95451.0,95448.0,0.0104769]
[1768660366524,0.01047657,95451.0,95447.0,0.01047701]
[1768660366928,0.03309572,95451.0,95447.0,0.01047701]
[1768660367141,0.01047668,95450.0,95446.0,0.01047712]
[1768660367347,0.01047679,95449.0,95446.0,0.01047712]
[1768660368862,0.01047668,95450.0,95447.0,0.01047701]
[1768660370686,0.01047668,95450.0,95446.0,0.01047712]
[1768660370895,0.01047679,95449.0,95445.0,0.01047723]
[1768660371093,0.01047679,95449.0,95446.0,0.01047712]
[1768660371495,0.01047668,95450.0,95447.0,0.01047701]
[1768660371706,0.01047657,95451.0,95447.0,0.01047701]
[1768660371912,0.01047657,95451.0,95448.0,0.0104769]
[1768660372114,0.01047657,95451.0,95447.0,0.01047701]
[1768660372538,0.01047657,95451.0,95448.0,0.0104769]
[1768660373007,0.01047646,95452.0,95449.0,0.01047679]
[1768660373286,0.01047646,95452.0,95448.0,0.0104769]
[1768660373449,0.01047646,95452.0,95448.0,0.06286143]
[1768660373652,0.0002,95453.0,95449.0,0.01047679]
[1768660373852,0.0002,95453.0,95450.0,0.01047668]
[1768660376186,0.01047646,95452.0,95449.0,0.01047679]
[1768660377651,0.01047646,95452.0,95447.0,0.01047701]
[1768660378116,0.01047646,95452.0,95448.0,0.0104769]
[1768660378751,0.06285905,95452.0,95448.0,0.0104769]
[1768660378924,0.01047646,95452.0,95448.0,0.0104769]
[1768660379331,0.06285888,95452.0,95448.0,0.0104769]
[1768660379541,0.01047657,95451.0,95448.0,0.0104769]
[1768660379939,0.0104313,95451.0,95448.0,0.0104769]
[1768660380133,0.01047646,95452.0,95448.0,0.06286125]
[1768660380338,0.01047646,95452.0,95449.0,0.01047679]
[1768660380547,0.01047646,95452.0,95448.0,0.0104769]
[1768660380753,0.0002,95453.0,95449.0,0.01047679]
[1768660380956,0.0002,95453.0,95451.0,0.05238242]
[1768660381360,0.0002,95453.0,95450.0,0.06285999]
[1768660381703,0.0002,95453.0,95450.0,0.01047668]
[1768660382372,0.06305819,95453.0,95449.0,0.01047679]
[1768660382574,0.01067636,95453.0,95449.0,0.01047679]
[1768660382944,0.01067636,95453.0,95449.0,0.06286074]
[1768660383540,0.06305826,95453.0,95449.0,0.01047679]
[1768660383921,0.0002,95453.0,95450.0,0.06285997]
[1768660384351,0.01047603,95456.0,95451.0,0.01047657]
[1768660384549,0.01047603,95456.0,95451.0,0.06285894]
[1768660384757,0.01047603,95456.0,95453.0,0.01047636]
[1768660385207,0.01047581,95458.0,95453.0,0.06285807]
[1768660385442,0.06285506,95458.0,95453.0,0.01047636]
[1768660385647,0.01047592,95457.0,95454.0,0.01047625]
[1768660385812,0.01047603,95456.0,95453.0,0.01047636]
[1768660386366,0.01047614,95455.0,95451.0,0.01047657]
[1768660386572,0.01047614,95455.0,95451.0,0.06285941]
[1768660386787,0.06285702,95455.0,95451.0,0.01047657]
[1768660386982,0.01047614,95455.0,95452.0,0.01047646]
[1768660387703,0.06285726,95455.0,95451.0,0.01047657]
[1768660387902,0.01047614,95455.0,95452.0,0.01047646]
[1768660388942,0.01047603,95456.0,95453.0,0.01047636]
[1768660389346,0.0104757,95459.0,95455.0,0.01047614]
[1768660389546,0.06285492,95458.0,95454.0,0.01047625]
[1768660389778,0.0104757,95459.0,95455.0,0.01047614]
[1768660389921,0.06285487,95458.0,95452.0,0.06285826]
[1768660390124,0.06285487,95458.0,95452.0,0.01047646]
[1768660390366,0.0104757,95459.0,95455.0,0.01047614]
[1768660390575,0.0001595,95490.0,95465.0,0.01047504]
[1768660390576,0.01063388,95471.0,95465.0,0.01047504]
[1768660390922,0.0104757,95459.0,95445.0,0.01047646]
[1768660391129,0.0104757,95459.0,95446.0,0.12696]
[1768660391331,0.06285499,95458.0,95443.0,0.32467414]
[1768660391541,0.01047603,95456.0,95453.0,0.01047636]
[1768660391665,0.01047603,95456.0,95452.0,0.01047646]
[1768660391872,0.01047592,95457.0,95453.0,0.01047636]
[1768660392495,0.01047603,95456.0,95452.0,0.01047646]
[1768660392691,0.06285646,95456.0,95452.0,0.01047646]
[1768660393098,0.0629037,95456.0,95452.0,0.01047646]
[1768660393725,0.01052327,95456.0,95452.0,0.01047646]
[1768660393923,0.06290356,95456.0,95452.0,0.01047646]
[1768660394331,0.01047614,95455.0,95452.0,0.01047646]
[1768660395261,0.06285688,95455.0,95451.0,0.01047657]
[1768660395547,0.05238291,95451.0,95448.0,0.12696]
[1768660395867,0.01047646,95452.0,95448.0,0.12696]
[1768660396187,0.01047646,95452.0,95450.0,0.00048924]
[1768660396390,0.01047625,95454.0,95450.0,0.00048924]
[1768660396586,0.05242759,95456.0,95451.0,0.01047657]
[1768660396826,4.724e-05,95456.0,95453.0,0.05238133]
[1768660397277,4.724e-05,95456.0,95452.0,0.06285836]
[1768660397486,4.724e-05,95456.0,95452.0,0.01047646]
[1768660397487,0.06290346,95456.0,95452.0,0.01047646]
[1768660397658,0.01052327,95456.0,95452.0,0.01047646]
[1768660397821,0.01043272,95456.0,95452.0,0.06285871]
[1768660398373,0.01043272,95456.0,95453.0,0.01047636]
[1768660398587,0.062813,95456.0,95452.0,0.01047646]
[1768660398791,0.01047614,95455.0,95452.0,0.01047646]
[1768660400229,0.01047537,95462.0,95453.0,0.01047636]
[1768660400431,0.01047537,95462.0,95459.0,0.0104757]
[1768660400753,0.06285196,95463.0,95459.0,0.0104757]
[1768660400990,0.01047526,95463.0,95459.0,0.0104757]
[1768660401353,0.01047526,95463.0,95458.0,0.01047581]
[1768660401354,0.01047537,95462.0,95458.0,0.01047581]
[1768660401564,0.06285226,95462.0,95458.0,0.01047581]
[1768660401790,0.01047548,95461.0,95457.0,0.01047592]
[1768660401991,0.06285299,95461.0,95457.0,0.01047592]
[1768660402322,0.06285315,95461.0,95457.0,0.01047592]
[1768660402523,0.01047559,95460.0,95457.0,0.01047592]
[1768660404352,0.06285362,95460.0,95456.0,0.01047603]
[1768660404691,0.01038492,95461.0,95456.0,0.01047603]
[1768660404692,0.01038492,95461.0,95458.0,0.01047581]
[1768660405042,0.01033964,95461.0,95458.0,0.01047581]
[1768660405673,0.06271753,95461.0,95457.0,0.01047592]
[1768660405854,0.01047559,95460.0,95457.0,0.01047592]
[1768660406018,0.06285361,95460.0,95456.0,0.01047603]
[1768660406571,0.01033964,95461.0,95457.0,0.01047592]
[1768660406774,0.01033964,95461.0,95457.0,0.06285508]
[1768660407209,0.01033964,95461.0,95457.0,0.01047592]
[1768660407705,0.06271711,95461.0,95457.0,0.01047592]
[1768660407843,0.01047559,95460.0,95457.0,0.01047592]
[1768660408047,0.01047581,95458.0,95453.0,0.01047636]
[1768660408251,0.06285631,95456.0,95451.0,0.01047657]
[1768660408663,0.01047603,95456.0,95451.0,0.01047657]
[1768660408919,0.01047614,95455.0,95452.0,0.01047646]
[1768660409076,0.06285624,95456.0,95452.0,0.01047646]
[1768660410450,0.01047614,95455.0,95452.0,0.01047646]
[1768660410667,0.01047581,95458.0,95455.0,0.01047614]
[1768660410883,0.01047548,95461.0,95457.0,0.01047592]
[1768660411303,0.01047548,95461.0,95458.0,0.01047581]
[1768660411505,0.01047537,95462.0,95458.0,0.01047581]
[1768660411914,0.01047548,95461.0,95458.0,0.01047581]
[1768660412446,0.01047537,95462.0,95458.0,0.06285485]
[1768660412653,0.01047537,95462.0,95459.0,0.0104757]
[1768660413031,0.01047537,95462.0,95458.0,0.06285479]
[1768660413188,0.01047537,95462.0,95457.0,0.01047592]
[1768660413540,0.01047559,95460.0,95457.0,0.01047592]
[1768660414111,0.0104757,95459.0,95456.0,0.01047603]
[1768660414309,0.06285462,95459.0,95455.0,0.01047614]
[1768660414529,0.0104757,95459.0,95455.0,0.01047614]
[1768660414911,0.01047581,95458.0,95452.0,0.01047646]
[1768660415168,0.01047614,95455.0,95452.0,0.01047646]
[1768660415460,0.01038554,95455.0,95452.0,0.01047646]
[1768660415850,0.06285495,95458.0,95454.0,0.01047625]
[1768660416622,0.0104757,95459.0,95455.0,0.01047614]
[1768660417066,0.01047559,95460.0,95455.0,0.01047614]
[1768660417267,0.01047581,95458.0,95455.0,0.01047614]
[1768660417676,0.06285552,95457.0,95452.0,0.0628587]
[1768660418287,0.01047581,95458.0,95453.0,0.01047636]
[1768660418551,0.01047592,95457.0,95453.0,0.01047636]
[1768660418912,0.01047592,95457.0,95454.0,0.01047625]
[1768660419313,0.01047581,95458.0,95453.0,0.01047636]
[1768660419532,0.01047592,95457.0,95453.0,0.01047636]
[1768660419725,0.01047614,95455.0,95452.0,0.01047646]
[1768660420107,0.01047603,95456.0,95452.0,0.01047646]
[1768660420330,0.01047625,95454.0,95450.0,0.01096592]
[1768660420557,0.01047625,95454.0,95451.0,0.01047657]
[1768660420704,0.01047603,95456.0,95452.0,0.06285865]
[1768660420892,0.06285626,95456.0,95452.0,0.01047646]
[1768660421101,0.02096,95450.0,95448.0,0.12696]
[1768660421311,0.01047646,95452.0,95448.0,0.1374369]
[1768660422280,0.01047636,95453.0,95449.0,0.01047679]
[1768660423074,0.01047625,95454.0,95450.0,0.01047668]
[1768660423816,0.01047625,95454.0,95450.0,0.06285994]
[1768660424218,0.01047625,95454.0,95450.0,0.01047668]
[1768660424607,0.30919746,95455.0,95451.0,0.01047657]
[1768660425491,0.36157819,95455.0,95451.0,0.01047657]
[1768660426012,0.30919746,95455.0,95451.0,0.01047657]
[1768660426673,0.01047625,95454.0,95451.0,0.01047657]
[1768660427717,0.29872132,95455.0,95452.0,0.01047646]
[1768660427935,0.01047614,95455.0,95452.0,0.01047646]
[1768660428539,0.06285698,95455.0,95451.0,0.01047657]
[1768660428677,0.01047614,95455.0,95450.0,0.01047668]
[1768660428893,0.01047625,95454.0,95451.0,0.01047657]
[1768660429960,0.01047625,95454.0,95450.0,0.01047668]
[1768660429961,0.01047636,95453.0,95450.0,0.01047668]
[1768660430198,0.01047636,95453.0,95449.0,0.01047679]
[1768660430329,0.01047646,95452.0,95449.0,0.01047679]
[1768660431772,0.01047636,95453.0,95450.0,0.01047668]
[1768660432316,0.01047636,95453.0,95450.0,0.06286]
[1768660433015,0.01047636,95453.0,95450.0,0.01047668]
[1768660433352,0.01047625,95454.0,95450.0,0.06286004]
[1768660433819,0.01047614,95455.0,95451.0,0.01047657]
[1768660433989,0.01047603,95456.0,95452.0,0.01047646]
[1768660434357,0.01047614,95455.0,95452.0,0.01047646]
[1768660436187,0.01047614,95455.0,95452.0,0.06285868]
[1768660436631,0.01047614,95455.0,95452.0,0.01047646]
[1768660437929,0.06285689,95455.0,95452.0,0.01047646]
[1768660438133,0.01047603,95456.0,95453.0,0.01047636]
[1768660438537,0.01047581,95458.0,95453.0,0.06285812]
[1768660439141,0.01047581,95458.0,95454.0,0.06285746]
[1768660439468,0.06285534,95458.0,95454.0,0.01047625]
[1768660440454,0.01047581,95458.0,95454.0,0.01047625]
[1768660440790,0.01047592,95457.0,95453.0,0.01047636]
[1768660441216,0.01047592,95457.0,95454.0,0.01047625]
[1768660441973,0.01047603,95456.0,95453.0,0.01047636]
[1768660442179,0.01047614,95455.0,95452.0,0.01047646]
[1768660442782,0.01047592,95457.0,95453.0,0.01047636]
[1768660442969,0.01047592,95457.0,95454.0,0.01047625]
[1768660443642,0.06285618,95456.0,95452.0,0.01047646]
[1768660443810,0.06285689,95455.0,95452.0,0.01047646]
[1768660444006,0.01047614,95455.0,95452.0,0.01047646]
[1768660444413,0.01047614,95455.0,95445.0,0.20954304]
[1768660444414,0.31825316,95448.0,95438.0,0.0001595]
[1768660444653,0.31825316,95448.0,95438.0,0.00020674]
[1768660444654,0.31825316,95441.0,95438.0,0.00020674]
[1768660444816,0.05238948,95439.0,95438.0,0.00020674]
[1768660445024,0.38111974,95441.0,95438.0,0.00020674]
[1768660445252,0.01047767,95441.0,95438.0,0.00020674]
[1768660445967,0.06286607,95441.0,95438.0,0.00020674]
[1768660447029,0.05238896,95440.0,95438.0,0.00020674]
[1768660447412,0.05238948,95439.0,95438.0,0.00020674]
[1768660447922,0.01047767,95441.0,95438.0,0.00020674]
[1768660448325,0.06286654,95441.0,95438.0,0.00020674]
[1768660448943,0.0523891,95440.0,95438.0,0.00020674]
[1768660450258,0.05238948,95439.0,95438.0,0.00020674]
[1768660450704,0.0628664,95441.0,95438.0,0.00020674]
[1768660451372,0.01047767,95441.0,95438.0,0.00020674]
[1768660451578,0.05238946,95440.0,95438.0,0.00020674]
[1768660451832,0.01047921,95427.0,95422.0,0.01047976]
[1768660451980,0.01047943,95425.0,95422.0,0.00047279]
[1768660453244,0.06287708,95425.0,95422.0,0.00047279]
[1768660453615,0.01047932,95426.0,95422.0,0.01095255]
[1768660453803,0.01047932,95426.0,95422.0,0.06335133]
[1768660454007,0.1374391,95428.0,95423.0,0.06287737]
[1768660454194,0.1374391,95428.0,95424.0,0.01047954]
[1768660455116,0.12696,95428.0,95425.0,0.01047943]
[1768660455955,0.12696,95428.0,95424.0,0.01047954]
[1768660455956,0.01047921,95427.0,95424.0,0.01047954]
[1768660456147,0.01047921,95427.0,95423.0,0.01047965]